Cogmind - Beta 12 @@@ ROGUE MODE // 2023.03.12 @ 03:09:02 Player: Red Box Result: Destroyed by 8R-AWN with 8R-AWN's Boregun Performance ------------- Evolutions (1) 500 Regions Visited (5) 1000 Robots Destroyed (63) 315 Value Destroyed (1545) 1545 Prototype IDs (46) 920 Alien Tech Used (0) 0 Bonus (274) 274 TOTAL SCORE: 4554 Bonus ------- Follower Combat Kills 21 Aligned with FarCom 300 Friendly Fire -47 Cogmind --------- Core Integrity 0/400 Matter 292/300 Energy 280/280 System Corruption 0% Temperature Cool (61) Movement Rolling (120) Ox2 Location -9/Exiles Parts ------- > --- POWER (1) -------- Cooled Ion Engine > --- PROPULSION (2) --- Armored Wheel Armored Wheel > --- UTILITY (4) ------ High-capacity Storage Unit Targeting Computer Kinecellerator Light Armor Plating > --- WEAPON (2) ------- Improved Light Cannon Improved Light Cannon > --- INVENTORY (20) --- Cooled Ion Engine Armored Wheel Armored Wheel Armored Wheel High-capacity Battery (250) Bomb Drone Bay (15/16) Beamcaster Beamcaster Improved Light Cannon Improved Light Cannon Bore Cannon EMP Blaster Rocket Launcher Powered Hammer Peak State ------------ > --- POWER ------------ Cooled Ion Engine > --- PROPULSION ------- Armored Wheel Armored Wheel > --- UTILITY ---------- High-capacity Storage Unit Targeting Computer Bomb Drone Bay > --- WEAPON ----------- Improved Light Cannon Improved Light Cannon > --- INVENTORY -------- Cooled Ion Engine Reinforced Deuterium Engine Light Fission Core Armored Wheel Armored Wheel Armored Wheel High-capacity Battery Kinecellerator Light Armor Plating Light Armor Plating Beamcaster Beamcaster Improved Light Cannon Improved Light Cannon Bore Cannon EMP Blaster Rocket Launcher Powered Hammer [Rating: 32] Favorites ----------- Power Ion Engine Engine Ion Engine Propulsion Armored Wheel Leg Aluminum Leg Wheel Armored Wheel Utility Targeting Computer Device Cooling System Storage High-capacity Storage Unit Processor Targeting Computer Protection Light Armor Plating Weapon Improved Light Cannon Energy Gun Spread Laser Ballistic Gun Light Assault Rifle Ballistic Cannon Improved Light Cannon Launcher Rocket Launcher Special Melee Weapon Datajack Build | -11 -10 -10 -9 -9 -9 ------- Run | Jun Mat Min Mat Min Exi Slots Evolved 2 | . . . 2 . . Power . | . . . . . . Propulsion . | . . . . . . Utility 2 | . . . 2 . . Weapon . | . . . . . . Parts Attached 86 | 9 14 6 42 8 7 Power 11 | 1 2 . 7 1 . Engine 11 | 1 2 . 7 1 . Core . | . . . . . . Reactor . | . . . . . . Propulsion 21 | 4 7 3 6 1 . Treads . | . . . . . . Leg 2 | 2 . . . . . Wheel 19 | 2 7 3 6 1 . Hover . | . . . . . . Flight . | . . . . . . Utility 20 | 2 1 1 12 . 4 Device 9 | 1 . 1 5 . 2 Storage 3 | 1 1 . 1 . . Processor 1 | . . . 1 . . Hackware . | . . . . . . Protection 7 | . . . 5 . 2 Artifact . | . . . . . . Weapon 34 | 2 4 2 17 6 3 Energy Gun 17 | . 2 2 12 1 . Energy Cannon . | . . . . . . Ballistic Gun 7 | 2 2 . 3 . . Ballistic Cannon 4 | . . . . 3 1 Launcher 3 | . . . . 2 1 Special Weapon . | . . . . . . Impact Weapon . | . . . . . . Slashing Weapon . | . . . . . . Piercing Weapon . | . . . . . . Special Melee Weapon 3 | . . . 2 . 1 Unidentified Prototypes 2 | . . . 2 . . Parts Lost 9 | . 1 1 6 . 1 Power . | . . . . . . Propulsion 3 | . 1 1 1 . . Utility 3 | . . . 2 . 1 Weapon 3 | . . . 3 . . Highest Loss Streak 3 | . 1 1 3 . 1 To Critical Strikes . | . . . . . . Average Slot Usage (%) 97 | . 98 99 98 100 92 Engine 11 | . 13 14 11 11 11 Wheel 23 | . 26 27 21 22 22 Device 13 | . 14 14 16 11 8 Storage 11 | . 14 14 11 11 11 Processor 7 | . . . 10 11 11 Protection 4 | . . . 5 11 6 Energy Gun 13 | . 13 28 18 4 . Ballistic Gun 3 | . 14 . 3 . . Ballistic Cannon 5 | . . . . 17 16 Naked Turns . | . . . . . . Heaviest Build 64 | 13 28 32 58 61 64 Greatest Support 32 | 20 26 32 32 28 24 Greatest Overweight (x) 3 | 1 2 1 3 2 2 Average Overweight (x) 1 | . . . 1 2 2 Largest Inventory Capacity 20 | 8 15 15 20 20 20 Average Capacity 18 | 7 14 15 19 20 20 Most Carried 20 | 8 15 15 20 20 20 Average Carried 17 | 5 12 14 18 19 17 Final Capacity 20 | 8 15 15 20 20 20 Final Carried 20 | 8 15 15 20 20 15 Class Distribution -------------------- 70% | Mutant 29% | Scavenger-Mutant Dominant Class ---------------- Mutant | -10/Materials Scavenger-Mutant | -10/Mines Mutant | -9/Materials Mutant | -9/Mines Mutant | -9/Exiles Resources | -11 -10 -10 -9 -9 -9 ----------- Run | Jun Mat Min Mat Min Exi Matter Collected 1654 | 306 386 93 474 170 225 Remotely . | . . . . . . Salvage Created 1944 | 116 333 255 1152 88 . Parts 132 | 9 27 14 68 14 . Haulers Intercepted 4 | . 1 . 3 . . Recyclers Shooed 1 | . . . 1 . . Parts Field Recycled . | . . . . . . Retrieved Matter . | . . . . . . Parts Self-Destructed . | . . . . . . Prevented . | . . . . . . Kills | -11 -10 -10 -9 -9 -9 ------- Run | Jun Mat Min Mat Min Exi Combat Hostiles Destroyed 51 | . 10 6 24 11 . Guns 39 | . 10 6 23 . . Cannons 6 | . . . . 6 . AOE 5 | . . . . 5 . Classes Destroyed 9 | 2 4 . 2 1 . Tunneler 1 | 1 . . . . . Hauler 4 | . 1 . 3 . . Recycler 1 | 1 . . . . . Operator 1 | . . . . 1 . Watcher 5 | . 1 . 4 . . Swarmer 21 | . 6 . 4 11 . Grunt 19 | . 4 6 9 . . Duelist 1 | . . . 1 . . Sentry 10 | . . . 10 . . Best Kill Streak 5 | 1 5 2 4 4 . Combat Bots Only 5 | . 5 2 4 4 . Max Kills in Single Turn 4 | 1 1 1 2 4 . Gunslinging 1 | . . . 1 . . Exploded 3 | . . . . 3 . Melee . | . . . . . . Uniques/NPCs Destroyed . | . . . . . . Combat | -11 -10 -10 -9 -9 -9 -------- Run | Jun Mat Min Mat Min Exi Damage Taken 2238 | . 333 275 921 223 486 Core 548 | . 71 74 222 23 158 Absorbed by Shields . | . . . . . . Regen/Repaired (Parts) 218 | . 115 . 103 . . Core Remaining (%) 71 | 100 . 42 . . . Volleys Fired 183 | 8 47 21 80 10 17 Largest 2 | 2 2 2 2 2 2 Hottest 130 | 40 80 130 130 89 78 Shots Fired 355 | 16 94 42 151 20 32 Gun 304 | 16 94 42 151 1 . Cannon 49 | . . . . 17 32 Launcher 2 | . . . . 2 . Special . | . . . . . . Kinetic 172 | 16 84 . 23 17 32 Thermal 162 | . 10 42 109 1 . Explosive 2 | . . . . 2 . Electromagnetic 19 | . . . 19 . . Robot Hit Streak 29 | 4 10 13 29 6 10 Robot Miss Streak 7 | 2 6 2 7 2 2 Penetration Max . | . . . . . . Secondary Targets 5 | . 3 . 2 . . Max Gunslinging Chain 1 | . 1 . 1 . . Shots Hit Robots 252 | 7 58 29 120 10 28 Core Hits 151 | 4 24 14 96 12 1 Critical Kills 1 | . . . 1 . . Critical Parts Destroyed . | . . . . . . Critical Strikes 4 | . . . 2 2 . Burn 1 | . . . 1 . . Destroy 1 | . . . 1 . . Blast 2 | . . . . 2 . Melee Attacks 6 | . . . . . 6 Impact . | . . . . . . Slashing . | . . . . . . Piercing . | . . . . . . Sneak Attacks 6 | . . . . . 6 Combat Hostiles . | . . . . . . Follow-up Attacks . | . . . . . . Damage Inflicted 3835 | 68 479 418 1760 602 508 Guns 2725 | 68 479 418 1760 . . Cannons 754 | . . . . 246 508 Explosions 356 | . . . . 356 . Melee . | . . . . . . Ramming . | . . . . . . Kinetic 1524 | 68 438 . 264 246 508 Thermal 1806 | . 41 418 1347 . . Explosive 356 | . . . . 356 . Electromagnetic 149 | . . . 149 . . Impact . | . . . . . . Slashing . | . . . . . . Piercing . | . . . . . . Highest Corruption . | . . . . . . Average Corruption . | . . . . . . Corruption Purged . | . . . . . . Corruption Blocked . | . . . . . . Overload Shots . | . . . . . . Overflow Damage 32 | . . . . 32 . Projectiles 11 | . . . . 11 . Explosions 21 | . . . . 21 . Melee . | . . . . . . Knockbacks 11 | . . . . 2 9 Impact . | . . . . . . Kinetic 11 | . . . . 2 9 Secondary . | . . . . . . Self-Inflicted Damage 41 | . . . . 41 . Shots 1 | . . . . 1 . Rammed . | . . . . . . Targets Rammed . | . . . . . . Kicked . | . . . . . . Crushed . | . . . . . . Highest Temperature 388 | . 36 388 238 . 235 Average Temperature 87 | . 13 122 70 . 115 Received Heat Transfer 609 | . 84 177 348 . . Effects 1 | . . 1 . . . Shutdowns 1 | . . 1 . . . Siege Activations . | . . . . . . Robots Corrupted . | . . . . . . Combat Hostiles . | . . . . . . Parts Fried . | . . . . . . Impact Corruptions . | . . . . . . Robots Melted 1 | . . . 1 . . Combat Hostiles 1 | . . . 1 . . Parts Melted 7 | . . 1 6 . . Heat Transferred 3618 | . 100 941 2577 . . Parts Sabotaged . | . . . . . . Parts Stolen . | . . . . . . Parts Stripped . | . . . . . . Power Chain Reactions . | . . . . . . Missiles Intercepted . | . . . . . . Alert | -11 -10 -10 -9 -9 -9 ------- Run | Jun Mat Min Mat Min Exi Peak Influence 367 | 10 185 127 367 208 . Initial 48 | . 6 27 . 48 . Average 127 | 4 112 49 168 92 . Maximum Alert Level 1 | . . . 1 1 . Low Security (%) 79 | 100 100 100 63 90 . Level 1 20 | . . . 36 9 . Level 2 . | . . . . . . Level 3 . | . . . . . . Level 4 . | . . . . . . Level 5 . | . . . . . . High Security . | . . . . . . Max Security . | . . . . . . Squads Dispatched 3 | . 2 . . 1 . Investigation 3 | . 2 . . 1 . Extermination . | . . . . . . Reinforcement . | . . . . . . Assault . | . . . . . . Garrison . | . . . . . . Intercept . | . . . . . . Searches Triggered . | . . . . . . Construction Impeded . | . . . . . . Haulers Reinforced . | . . . . . . Active Scanning Responses . | . . . . . . Cargo Convoy Interrupts . | . . . . . . Stealth | -11 -10 -10 -9 -9 -9 --------- Run | Jun Mat Min Mat Min Exi Distress Signals 5 | . 4 . 1 . . Communications Jammed . | . . . . . . Distress Signals . | . . . . . . Times Spotted 75 | . 18 6 35 15 1 Peak Tracking Total 9 | . 5 2 4 4 9 Tactical Retreats 1 | . . . . 1 . Traps | -11 -10 -10 -9 -9 -9 ------- Run | Jun Mat Min Mat Min Exi Traps Triggered 2 | . 1 . 1 . . Indirectly . | . . . . . . Trap Hack Attempts 23 | . . . 23 . . Triggered . | . . . . . . Disarmed . | . . . . . . Reprogrammed 5 | . . . 5 . . Reused 1 | . . . 1 . . Traps Extracted . | . . . . . . Installed . | . . . . . . Triggered 1 | . . . 1 . . Machines | -11 -10 -10 -9 -9 -9 ---------- Run | Jun Mat Min Mat Min Exi Machines Disabled 3 | . . . . . 3 Max in Single Turn 1 | . . . . . 1 Machines Repaired . | . . . . . . Machines Sabotaged . | . . . . . . Overloaded Fab Kills . | . . . . . . Hacking | -11 -10 -10 -9 -9 -9 --------- Run | Jun Mat Min Mat Min Exi Machines Accessed 31 | . 11 1 16 1 2 Terminals 19 | . 8 . 11 . . Fabricators . | . . . . . . Repair Stations 2 | . 1 . 1 . . Recycling Units 4 | . 2 . 2 . . Scanalyzers 2 | . . . 2 . . Garrison Access . | . . . . . . Total Hacks 99 | . 45 1 50 1 2 Successful 70 | . 30 1 36 1 2 Failed 27 | . 14 . 13 . . Catastrophic 1 | . 1 . . . . Database Lockouts 2 | . 1 . 1 . . Manual 49 | . 22 . 26 . 1 Terminals 66 | . 32 . 34 . . Fabricators . | . . . . . . Repair Stations 14 | . 8 . 6 . . Recycling Units 10 | . 5 . 5 . . Scanalyzers 5 | . . . 5 . . Garrison Access . | . . . . . . Terminal Hacks 21 | . 7 1 10 1 2 Record 1 | . . . . . 1 Robot Analysis 4 | . 2 . 2 . . Prototype ID Bank 4 | . . . 4 . . Open Door 2 | . . 1 . 1 . Branch Access Points 1 | . . . 1 . . Terminal Index 2 | . 1 . 1 . . Alert Level 1 | . 1 . . . . Unreport Threat 1 | . . . 1 . . Locate Traps 2 | . 2 . . . . Hauler Manifests 2 | . 1 . 1 . . EX-Prototype ID Bank 1 | . . . . . 1 Fabricator Hacks . | . . . . . . Repair Station Hacks 14 | . 8 . 6 . . Scan Component 7 | . 4 . 3 . . Repair 7 | . 4 . 3 . . Recycling Unit Hacks 5 | . 2 . 3 . . Report Inventory 3 | . 1 . 2 . . Retrieve Components 2 | . 1 . 1 . . Scanalyzer 5 | . . . 5 . . Insert Component 3 | . . . 3 . . Analyze 2 | . . . 2 . . Garrison Access Hacks . | . . . . . . Unauthorized Hacks 25 | . 13 . 12 . . Terminals 22 | . 11 . 11 . . Track 7 | . 5 . 2 . . Assimilate 2 | . . . 2 . . Botnet 11 | . 5 . 6 . . Operators 2 | . 1 . 1 . . Fabricators . | . . . . . . Repair Stations . | . . . . . . Recycling Units 3 | . 2 . 1 . . Reject 2 | . 1 . 1 . . Tunnel 1 | . 1 . . . . Scanalyzers . | . . . . . . Garrison Access . | . . . . . . Data Cores Recovered . | . . . . . . Used . | . . . . . . Hacking Detections 26 | . 10 . 16 . . Full Trace Events 1 | . 1 . . . . Feedback Events . | . . . . . . Feedback Blocked . | . . . . . . Robot Schematics Acquired . | . . . . . . Robots Built . | . . . . . . Authchips . | . . . . . . Time . | . . . . . . Total Robot Build Rating . | . . . . . . Part Schematics Acquired 2 | . . . 2 . . Parts Built . | . . . . . . Authchips . | . . . . . . Time . | . . . . . . Total Part Build Rating . | . . . . . . Parts Repaired 7 | . 4 . 3 . . Time 188 | . 104 . 84 . . Parts Recycled . | . . . . . . Recycled Matter . | . . . . . . Retrieved Matter . | . . . . . . Retrieved Components 14 | . 4 . 10 . . Parts Scanalyzed 2 | . . . 2 . . Part Schematics Acquired 2 | . . . 2 . . Parts Damaged . | . . . . . . Bothacking | -11 -10 -10 -9 -9 -9 ------------ Run | Jun Mat Min Mat Min Exi Used RIF Installer . | . . . . . . Robots Hacked 4 | . . . . . 4 Non-combat 3 | . . . . . 3 Combat 1 | . . . . . 1 Robot Hacks Applied 6 | . . . . . 6 parse_system 6 | . . . . . 6 Relay Couplers Released . | . . . . . . Fabnet Peak Effective % . | . . . . . . Robots Rewired . | . . . . . . Allies Hacked . | . . . . . . Hacks Repelled . | . . . . . . Allies | -11 -10 -10 -9 -9 -9 -------- Run | Jun Mat Min Mat Min Exi Total Allies 2 | . . . 1 1 . Largest Group 1 | . . . 1 1 . Highest-Rated Group 31 | . . . 10 31 . Highest-Rated Ally 31 | . . . 10 31 . Total Orders 14 | . . . 12 1 1 STAY 8 | . . . 6 1 1 FOLLOW 6 | . . . 6 . . Ally Attacks 13 | . . . . 12 1 Total Damage 190 | . . . . 190 . Kills 3 | . . . . 3 . Allies Corrupted . | . . . . . . Allies Melted . | . . . . . . Intel | -11 -10 -10 -9 -9 -9 ------- Run | Jun Mat Min Mat Min Exi Robot Analysis Total 4 | . 2 . 2 . . Derelict Logs Recovered 5 | . . 2 . 3 . Drone Launches 1 | . . . . . 1 Drone Recoveries . | . . . . . . Exploration | -11 -10 -10 -9 -9 -9 ------------- Run | Jun Mat Min Mat Min Exi Turns Passed 7986 | 113 1064 931 3274 907 1697 Spaces Moved 5581 | 66 799 719 2050 672 1275 Core 4 | 4 . . . . . Treads . | . . . . . . Legs 40 | 40 . . . . . Wheels 5537 | 22 799 719 2050 672 1275 Hover . | . . . . . . Flight . | . . . . . . Fastest Speed 50 | 50 80 95 100 120 120 Average Speed 113 | 103 93 98 119 121 120 Slowest Speed 145 | 120 110 115 145 125 120 Overloaded Moves . | . . . . . . Propulsion Burnouts . | . . . . . . Robots Hopped . | . . . . . . Cave-ins Triggered . | . . . . . . Exploration Rate (%) 81 | 4 99 98 99 98 90 Regions Visited 5 Branch Regions 3 Pre-discovered Areas 5 | . 1 1 . 2 1 Known Exits Taken 1 | . . . 1 . . Unknown Exits Taken 4 | 1 1 1 . 1 . Scrap Searched 3 | . . 1 . 2 . Spaces Dug . | . . . . . . Terrain Destroyed 25 | . . . . 23 2 Melee . | . . . . . . Projectile 5 | . . . . 3 2 AOE 20 | . . . . 20 . Terrain Rammed . | . . . . . . Walls Destroyed . | . . . . . . Machines Disabled . | . . . . . . Actions | -11 -10 -10 -9 -9 -9 --------- Run | Jun Mat Min Mat Min Exi Total 6912 | 95 1037 899 2716 746 1419 Wait 869 | . 155 138 461 43 72 Move 5576 | 65 798 718 2049 671 1275 Hop . | . . . . . . Pick Up 89 | 10 17 7 32 7 16 Fast Attach 24 | 8 3 1 12 . . Attach 29 | 1 7 1 12 3 5 Detach 3 | . . . 1 . 2 Swap 33 | . 4 4 18 5 2 Drop 73 | 3 6 9 28 7 20 Fire 183 | 8 47 21 80 10 17 Melee 6 | . . . . . 6 Ram . | . . . . . . Kick . | . . . . . . Crush . | . . . . . . Escape Stasis . | . . . . . . Rewire 4 | . . . . . 4 Trap 23 | . . . 23 . . Miscellaneous . | . . . . . . Route ------- -11/Junkyard -10/Materials (discovered 5 exits: *Mat x3 / *Min x2) -10/Mines (discovered 2 exits: *Mat x2) -9/Materials (discovered 4 exits: [*Mat x3] / *Min) -9/Mines (discovered 3 exits: [*Mat x2] / *Exi) -9/Exiles (discovered 2 exits: [*Min x2]) History --------- Turn | Location | Event 41 | -11/Junkyard | Discovered new exit (range 14) 114 | -11/Junkyard | Entered Materials 247 | -10/Materials | Discovered new exit (range 14) 300 | -10/Materials | Central database locked down 318 | -10/Materials | Build established: Mutant 547 | -10/Materials | Discovered new exit (range 7) 734 | -10/Materials | Discovered new exit (range 16) 863 | -10/Materials | Discovered new exit (range 6) 864 | -10/Materials | Discovered new exit (range 12) 970 | -10/Materials | Repaired Wheel 997 | -10/Materials | Repaired Ion Engine 1025 | -10/Materials | Repaired Wheel 1052 | -10/Materials | Repaired Com. Wheel 1178 | -10/Materials | Entered Mines 1223 | -10/Mines | Core integrity fell below 50% 1364 | -10/Mines | A weapon hastily lodged in a ceiling crevice suddenly fell to the ground 1483 | -10/Mines | Discovered new exit (range 10) 1574 | -10/Mines | Build established: Scavenger-Mutant 1584 | -10/Mines | Learned Materials emergency access door positions 1684 | -10/Mines | Discovered new exit (range 6) 1772 | -10/Mines | Found the Drone Emporium 1777 | -10/Mines | Found Prototype Device 2109 | -10/Mines | Entered Materials 2109 | -9/Materials | Evolved 2 slots: Utility x2 2120 | -9/Materials | Identified exit to Mines 2407 | -9/Materials | Lost 3 parts (1u2w) 3043 | -9/Materials | Discovered new exit (range 3) 3514 | -9/Materials | Discovered new exit (range 14) 3770 | -9/Materials | Central database locked down 3938 | -9/Materials | Build established: Mutant 3952 | -9/Materials | Discovered new exit (range 8) 4113 | -9/Materials | Core integrity fell below 50% 4485 | -9/Materials | Identified Bomb Drone Bay 4893 | -9/Materials | Repaired Spread Laser 4921 | -9/Materials | Repaired Lgt. Armor Plating 4948 | -9/Materials | Repaired Lgt. Armor Plating 5383 | -9/Materials | Entered Mines 5383 | -9/Mines | Accompanied by 1 ally 5521 | -9/Mines | Learned location of Storage (-8) 5548 | -9/Mines | Learned Materials security intel 5565 | -9/Mines | Met a Derelict shopkeep closing up shop 5625 | -9/Mines | Deemed a non-threat by the Exiles lab entrance 5625 | -9/Mines | Discovered new exit (range 5) 5698 | -9/Mines | Discovered new exit (range 6) 5831 | -9/Mines | Learned location of Zion (-6) 5894 | -9/Mines | Received a Mining Laser from a helpful Derelict 6036 | -9/Mines | Discovered new exit (range 6) 6290 | -9/Mines | Entered Exiles 6319 | -9/Exiles | Met 8R-AWN 6347 | -9/Exiles | Met EX-HEX 6398 | -9/Exiles | Met EX-DEC 6473 | -9/Exiles | Discovered new exit (range 14) 6541 | -9/Exiles | Met EX-BIN 6674 | -9/Exiles | Visited The Gauntlet 7485 | -9/Exiles | Discovered new exit (range 15) 7622 | -9/Exiles | Aligned with FarCom system 7624 | -9/Exiles | Given EX-Vault access code 7651 | -9/Exiles | Opened EX-Vault 7661 | -9/Exiles | Found Superbattery 7664 | -9/Exiles | Found Modified TNC 7693 | -9/Exiles | Warned to stay clear of 0b10 Research branches 7845 | -9/Exiles | Attacked by the Exiles 7971 | -9/Exiles | Core integrity fell below 20% 7987 | -9/Exiles | Destroyed by 8R-AWN with 8R-AWN's Boregun Last Messages --------------- 07965_ HV Slug penetrates Earth. 07968_ Penetrated by HV Slug. 07968_ HV Slug penetrates Earth. 07968_ HV Slug penetrates Machine. 07968_ 8R-AWN knocked back. 07970_ Penetrated by HV Slug. 07971_ 8R-AWN knocked back. 07972_ Penetrated by HV Slug. 07972_ HV Slug penetrates Wall. 07972_ HV Slug penetrates Earth. 07974_ Penetrated by HV Slug. 07979_ HV Slug penetrates Machine. 07979_ Machine disabled. 07979_ Penetrated by HV Slug. 07979_ HV Slug penetrates Wall. 07982_ Extracted 117 matter. 07986_ 8R-AWN knocked back. 07987_ HV Slug penetrates Machine. 07987_ HV Slug penetrates Wall. 07987_ Penetrated by HV Slug. Map ----- +----------------------------------------------------+ | ?????????????????????????????????????????????????? | | ?????????????????????????????????????????????????? | | ?????????????????????????????????????????????????? | | ?????????????####????????????????????????????????? | | ????????????## #???????????????????????????????? | | ????????????# ???????????????????????????????? | | ????????????# < ???????????????????????????????? | | ????????????# ##?????????????????????????????? | | ????????????# ?????????????????????????????? | | ????????????# #?????????????????????????????? | | ?????????????# #?????????????????????????????? | | ?????????????# ##????????????????????????????? | | ??????????????# #????????????#######?????????? | | ??????????????# #######??????#!!! "#?????????? | | ??????????????# #"""#?????# "#?????????? | | ??????????????## #?????# "#?????????? | | ???????????????##" ###??## ""#?????????? | | ???????????????#"" "####" ""#?????????? | | ???????????????#### ##" ""#?????????? | | ??????????????????## % #"" #???????????? | | ???????????????????#"## % #???????????? | | ???????????????????####### % ##??????????? | | ?????????????????????????###% % "#??????????? | | ???????????????????######## ###????????? | | ???????????????????#[[!"""" %%% ##???????? | | ???????????????????# !!!!@ g ###"" ######??? | | ???????????????????# !!! ####" """#### | | ???????????????????# !!! % ;;#?#" | | ???????????????????# """ "#;###?#"# | | ???????????????????#########; #???#### | | ???????????????????????????? #??????### | | ??????????????????????????? #????????### | | ???????????????????????????## #??????????## | | ????????????????????????????# #???????????## | | ????????????????????????????# #????????????##" | | ????????????????????????????# #?????????????#""" | | ????????????????????????????? ?????????????##" | | ????????????????????????????? ?????????????#"" | | ????????????????????????????? ????????????##""" | | ????????????????????????????? ????????????#""" | | ????????????????????????????? ????????????#""" | | ????????????????????????????? ????????????#"" | | ????????????????????????????? ????????????#""" | | ??????????????????????????????????????????#"" | | ??????????????????????????????????????????##"" | | ???????????????????????????????????????????#"""" | | ???????????????????????????????????????????## | | ????????????????????????????????????????????#" | | ????????????????????????????????????????????#"""" | | ????????????????????????????????????????????#"" | +----------------------------------------------------+ Best States ------------- Heat Dissipation 64 Energy Generation 14 Energy Capacity 280 Matter Stores 300 Matter Capacity 300 Sight Range 16 Terrain Scan Range 16 Terrain Scan Density 10 Armor Coverage 300 Evasion (%) 45 Targeting Accuracy 5 Kinecelleration 30 Item Schematics ----------------- Cld. Ion Engine | -9/Materials | Scanalyzed Arm. Wheel | -9/Materials | Scanalyzed Robot Schematics ------------------ None Fabricated ------------ Nothing Alien Tech Used ----------------- None Achievements -------------- None Challenges ------------ None Game ------ Seed MassContainmentPerforator Manual? 0 Play Time 01:14:49 Cumulative 562.9 hours Start 2023.03.12 @ 01:42:03 End 2023.03.12 @ 03:09:02 Sessions 1 Manual Loads 0 Difficulty Rogue Special Mode None Game No. 400 Rogue 400 Adventurer 0 Explorer 0 Win Type - Total 1 Types 1/0/0/0/0/0/0/0/0 Lore% 70 Gallery% 78 Achievement% 58 Wizard Run 0 Options --------- ASCII 0 Keyboard 0 Movement Mouse Keybinds 0 Fullscreen 1 Font 16/SmallcapsGlow Map View 75x55 Tactical HUD 1 Map Filters NONE Filters NONE Steam 1 RUN: f27b6666-2b98-4f8f-b3f9-913b74906608